Cogmind - Beta 16.1 @@@ ROGUE MODE // 2026.04.16 @ 20:20:27 Player: Thqwib-Linux Result: Destroyed by D-53 Grenadier with Mini Grenade Launcher Performance ------------- Evolutions (0) 0 Regions Visited (2) 400 Robots Destroyed (22) 110 Value Destroyed (398) 398 Prototype IDs (2) 40 Alien Tech Used (0) 0 Bonus (0) 0 TOTAL SCORE: 948 Bonus ------- None Cogmind --------- Core Integrity 0/250 Matter 292/300 Energy 159/160 System Corruption 0% Temperature Cool (4) Movement Treading (160) Location -10/Mines Parts ------- > --- POWER (1) -------- Light Nuclear Core > --- PROPULSION (2) --- Light Treads Wheel > --- UTILITY (2) ------ Medium Storage Unit Targeting Computer > --- WEAPON (2) ------- Light Assault Rifle > --- INVENTORY (10) --- Ion Engine Light Treads Light Treads Wheel Heat Sink Huge Storage Unit Weapon Shielding Tractor Beam Beam Cannon Grenade Launcher Peak State ------------ > --- POWER ------------ Light Nuclear Core > --- PROPULSION ------- Light Treads Wheel > --- UTILITY ---------- Medium Storage Unit Targeting Computer > --- WEAPON ----------- Light Assault Rifle Light Assault Rifle > --- INVENTORY -------- Light Ion Engine Light Treads Light Treads Wheel Weight Redist. System Weapon Shielding Tractor Beam Beam Cannon Grenade Launcher [Rating: 10] Favorites ----------- Power Light Nuclear Core Engine Ion Engine Power Core Light Nuclear Core Propulsion Wheel Treads Light Treads Leg Aluminum Leg Wheel Wheel Utility Targeting Computer Storage Medium Storage Unit Processor Targeting Computer Weapon Light Assault Rifle Ballistic Gun Light Assault Rifle Launcher Grenade Launcher Build | -11 -10 -10 ------- Run | Yrd Mat Min Slots Evolved . | . . . Power . | . . . Propulsion . | . . . Utility . | . . . Weapon . | . . . Parts Attached 9 | 1 8 . Power 2 | . 2 . Engine 1 | . 1 . Core 1 | . 1 . Reactor . | . . . Propulsion 2 | . 2 . Treads 1 | . 1 . Leg . | . . . Wheel 1 | . 1 . Hover . | . . . Flight . | . . . Utility 2 | . 2 . Device . | . . . Storage 1 | . 1 . Processor 1 | . 1 . Hackware . | . . . Protection . | . . . Artifact . | . . . Weapon 3 | 1 2 . Energy Gun . | . . . Energy Cannon . | . . . Ballistic Gun 2 | 1 1 . Ballistic Cannon . | . . . Launcher 1 | . 1 . Special Weapon . | . . . Impact Weapon . | . . . Slashing Weapon . | . . . Piercing Weapon . | . . . Special Melee Weapon . | . . . Unidentified Prototypes . | . . . Parts Lost 3 | . 2 1 Power 1 | . 1 . Propulsion . | . . . Utility . | . . . Weapon 2 | . 1 1 Highest Loss Streak 1 | . 1 1 To Critical Strikes . | . . . Average Backups 8 | 6 7 10 Power . | 1 . 1 Propulsion 3 | 4 3 3 Utility 2 | . 1 4 Weapon 1 | . 1 2 Tool/Special . | . . . Unused Backups 16 | . 7 9 Power 3 | . 2 1 Propulsion 5 | . 2 3 Utility 6 | . 2 4 Weapon 2 | . 1 1 Tool/Special . | . . . Average Slot Usage (%) 96 | . 95 100 Engine 4 | . 5 . Core 8 | . 7 14 Treads 9 | . 8 14 Leg 8 | . 10 . Wheel 9 | . 8 14 Storage 14 | . 14 14 Processor 11 | . 11 14 Ballistic Gun 27 | . 27 28 Peak Build Rating 10 | 6 10 10 Average Rating 8 | 5 7 9 On Entrance 7 | 6 6 10 Avg Prop Armor Cover (%) 14 | . 14 14 Naked Turns . | . . . Heaviest Build 19 | 12 19 17 Greatest Support 20 | 20 20 10 Greatest Overweight (x) 1 | . 1 1 Average Overweight (x) . | . . 1 Largest Inventory Capacity 10 | 8 10 10 Average Capacity 9 | 8 9 10 Most Carried 10 | 7 10 10 Average Carried 8 | 5 7 10 Final Capacity 10 | 8 10 10 Final Carried 10 | 6 10 10 Class Distribution -------------------- 100% | Mutant Dominant Class ---------------- Mutant | -10/Materials Mutant | -10/Mines Resources | -11 -10 -10 ----------- Run | Yrd Mat Min Matter Collected 531 | 216 309 6 Remotely . | . . . Salvage Created 930 | 117 794 19 Parts 49 | 4 43 2 Haulers Intercepted 2 | . 2 . Recyclers Shooed 1 | 1 . . Parts Field Recycled . | . . . Retrieved Matter . | . . . Parts Self-Destructed . | . . . Prevented . | . . . Parts Restored . | . . . Kills | -11 -10 -10 ------- Run | Yrd Mat Min Combat Hostiles Destroyed 11 | . 11 . Guns 11 | . 11 . Classes Destroyed 6 | 2 4 . Worker 2 | . 2 . Tunneler 2 | 1 . 1 Hauler 2 | . 2 . Recycler 5 | 1 4 . Swarmer 3 | . 3 . Grunt 8 | . 8 . Best Kill Streak 4 | 2 4 1 Combat Bots Only 3 | . 3 . Max Kills in Single Turn 2 | 1 2 1 Gunslinging . | . . . Exploded . | . . . Melee . | . . . Uniques/NPCs Destroyed . | . . . Combat | -11 -10 -10 -------- Run | Yrd Mat Min Hostile Shots Fired 79 | . 70 9 Missed 20 | . 19 1 Hits 59 | . 51 8 Projectile 59 | . 51 8 AOE 9 | . . 9 Damage Taken 1018 | . 637 381 Core 253 | . 164 89 Absorbed by Shields . | . . . Regen/Repaired (Parts) 155 | . 155 . Core Remaining (%) 100 | 100 . . Volleys Fired 104 | 6 89 9 Largest 2 | 2 2 2 Hottest 40 | 40 40 40 Shots Fired 205 | 12 176 17 Gun 204 | 12 175 17 Cannon . | . . . Launcher 1 | . 1 . Special . | . . . Kinetic 204 | 12 175 17 Thermal . | . . . Explosive 1 | . 1 . Electromagnetic . | . . . Robot Hit Streak 12 | 5 12 9 Robot Miss Streak 3 | 1 3 1 Penetration Max . | . . . Secondary Targets 1 | . 1 . Max Gunslinging Chain 1 | . 1 . Shots Hit Robots 149 | 10 126 13 Core Hits 55 | 4 47 4 Critical Kills 2 | . 2 . Critical Parts Destroyed . | . . . Critical Strikes 2 | . 2 . Destroy 2 | . 2 . Melee Attacks . | . . . Impact . | . . . Slashing . | . . . Piercing . | . . . Sneak Attacks . | . . . Combat Hostiles . | . . . Follow-up Attacks . | . . . Damage Inflicted 1322 | 71 1149 102 Guns 1164 | 71 991 102 Cannons . | . . . Explosions 158 | . 158 . Melee . | . . . Ramming . | . . . Kinetic 1164 | 71 991 102 Thermal . | . . . Explosive 158 | . 158 . Electromagnetic . | . . . Impact . | . . . Slashing . | . . . Piercing . | . . . Highest Corruption . | . . . Average Corruption . | . . . Corruption Purged . | . . . Corruption Blocked . | . . . Overload Shots . | . . . Overflow Damage . | . . . Projectiles . | . . . Explosions . | . . . Melee . | . . . Knockbacks . | . . . Impact . | . . . Kinetic . | . . . Secondary . | . . . Self-Inflicted Damage 41 | . 41 . Shots 1 | . 1 . Rammed . | . . . Targets Rammed . | . . . Kicked . | . . . Crushed . | . . . Highest Temperature 26 | . 26 8 Average Temperature 6 | . 7 4 Received Heat Transfer 288 | . 288 . Siege Activations . | . . . Martial Activations . | . . . Shielding Activations . | . . . Robots Disrupted . | . . . Combat Hostiles . | . . . Robots Corrupted . | . . . Combat Hostiles . | . . . Parts Fried . | . . . Impact Corruptions . | . . . Robots Melted . | . . . Combat Hostiles . | . . . Parts Melted . | . . . Heat Transferred . | . . . Parts Sabotaged . | . . . Parts Stolen . | . . . Parts Stripped . | . . . Power Chain Reactions . | . . . Alert | -11 -10 -10 ------- Run | Yrd Mat Min Maximum Alert Level 1 | . 1 . Low Security (%) 97 | 100 96 100 Level 1 2 | . 3 . Level 2 . | . . . Level 3 . | . . . Level 4 . | . . . Level 5 . | . . . High Security . | . . . Max Security . | . . . Peak Influence 212 | 5 212 5 Initial 3 | . 3 . Average 75 | 3 95 . Influence Increases 456 | 10 441 5 Destroy 0b10 Robot/C 220 | . 220 . Destroy 0b10 Robot/NC 55 | 10 40 5 Destroy Leader 54 | . 54 . Successful Hack 9 | . 9 . Disable Machine 30 | . 30 . Destroy Structure 43 | . 43 . Lose Combat Pursuer 45 | . 45 . Influence Decreases 456 | 5 446 5 Entered New Map 2 | . 2 . Time Decay 334 | 5 324 5 Lost Part 20 | . 20 . Purge Threat 100 | . 100 . Squads Dispatched 2 | . 2 . Investigation 1 | . 1 . Extermination . | . . . Reinforcement 1 | . 1 . Assault . | . . . Garrison . | . . . Intercept . | . . . Searches Triggered . | . . . Construction Impeded . | . . . Haulers Reinforced . | . . . Active Scanning Responses . | . . . Cargo Convoy Interrupts . | . . . Stealth | -11 -10 -10 --------- Run | Yrd Mat Min Distress Signals 3 | . 3 . Communications Jammed . | . . . Distress Signals . | . . . Times Spotted 27 | . 25 2 Peak Tracking Total 5 | . 5 2 Tactical Retreats 3 | . 3 . Traps | -11 -10 -10 ------- Run | Yrd Mat Min Traps Triggered 1 | . 1 . Indirectly . | . . . Trap Hack Attempts . | . . . Triggered . | . . . Disarmed . | . . . Reprogrammed . | . . . Reused . | . . . Traps Extracted . | . . . Installed . | . . . Triggered . | . . . Machines | -11 -10 -10 ---------- Run | Yrd Mat Min Machines Disabled 2 | . 2 . Max in Single Turn 2 | . 2 . Machines Repaired . | . . . Machines Dismantled . | . . . Machines Sabotaged . | . . . Overloaded Fab Kills . | . . . Hacking | -11 -10 -10 --------- Run | Yrd Mat Min Machines Accessed 6 | . 6 . Terminals 5 | . 5 . Fabricators . | . . . Repair Stations 1 | . 1 . Recycling Units . | . . . Scanalyzers . | . . . Garrison Access . | . . . Total Hacks 25 | . 25 . Successful 18 | . 18 . Failed 6 | . 6 . Catastrophic 1 | . 1 . Database Lockouts 1 | . 1 . Manual 15 | . 15 . Terminals 16 | . 16 . Fabricators . | . . . Repair Stations 9 | . 9 . Recycling Units . | . . . Scanalyzers . | . . . Garrison Access . | . . . Terminal Hacks 6 | . 6 . Robot Analysis 1 | . 1 . Prototype ID Bank 1 | . 1 . Unreport Threat 2 | . 2 . Locate Traps 1 | . 1 . Hauler Manifests 1 | . 1 . Fabricator Hacks . | . . . Repair Station Hacks 8 | . 8 . Scan Component 4 | . 4 . Repair 4 | . 4 . Recycling Unit Hacks . | . . . Scanalyzer . | . . . Garrison Access Hacks . | . . . Unauthorized Hacks 4 | . 4 . Terminals 4 | . 4 . Botnet 4 | . 4 . Fabricators . | . . . Repair Stations . | . . . Recycling Units . | . . . Scanalyzers . | . . . Garrison Access . | . . . Data Cores Recovered . | . . . Used . | . . . Hacking Detections 5 | . 5 . Full Trace Events . | . . . Feedback Events . | . . . Feedback Blocked . | . . . Robot Schematics Acquired . | . . . Robots Built . | . . . Authchips . | . . . Time . | . . . Total Robot Build Rating . | . . . Part Schematics Acquired . | . . . Parts Built . | . . . Authchips . | . . . Time . | . . . Total Part Build Rating . | . . . Part Studies Acquired . | . . . Parts Repaired 4 | . 4 . Time 116 | . 116 . Parts Recycled . | . . . Recycled Matter . | . . . Retrieved Matter . | . . . Retrieved Components . | . . . Parts Scanalyzed . | . . . Part Schematics Acquired . | . . . Parts Damaged . | . . . Bothacking | -11 -10 -10 ------------ Run | Yrd Mat Min Used RIF Installer . | . . . Robots Hacked . | . . . Non-combat . | . . . Combat . | . . . Robot Hacks Applied . | . . . Relay Couplers Released . | . . . Fabnet Peak Effective % . | . . . Robots Rewired . | . . . Allies Hacked . | . . . Hacks Repelled . | . . . Allies | -11 -10 -10 -------- Run | Yrd Mat Min Total Allies . | . . . Largest Group . | . . . Highest-Rated Group . | . . . Highest-Rated Ally . | . . . Total Orders . | . . . Ally Attacks . | . . . Total Damage . | . . . Kills . | . . . Allies Corrupted . | . . . Allies Melted . | . . . Intel | -11 -10 -10 ------- Run | Yrd Mat Min Active Infowar (turns) . | . . . Robot Analysis Total 1 | . 1 . Derelict Logs Recovered 1 | . . 1 Drone Launches . | . . . Drone Recoveries . | . . . Exploration | -11 -10 -10 ------------- Run | Yrd Mat Min Turns Passed 1285 | 35 1021 229 Spaces Moved 821 | 14 588 219 Core . | . . . Treads 1 | . 1 . Legs 224 | 14 210 . Wheels 596 | . 377 219 Hover . | . . . Flight . | . . . Fastest Speed 95 | 120 95 95 Average Speed 101 | 120 104 95 Slowest Speed 160 | 120 160 95 Overloaded Moves . | . . . Propulsion Burnouts . | . . . Robots Hopped . | . . . Potential Cave-ins . | . . . Cave-ins Triggered . | . . . Exploration Rate (%) 38 | 2 75 38 Regions Visited 2 Branch Regions 1 Pre-discovered Areas . | . . . Known Exits Taken . | . . . Unknown Exits Taken 2 | 1 1 . Scrap Searched . | . . . Spaces Dug . | . . . Terrain Destroyed 53 | . 53 . Melee . | . . . Projectile . | . . . AOE 53 | . 53 . Terrain Rammed . | . . . Walls Destroyed . | . . . Machines Disabled . | . . . Actions | -11 -10 -10 --------- Run | Yrd Mat Min Total 1105 | 23 854 228 Wait 150 | . 150 . Move 819 | 13 587 219 Hop . | . . . Pick Up 11 | 1 10 . Fast Attach 5 | . 5 . Attach 5 | 1 4 . Detach 1 | 1 . . Swap 4 | . 4 . Drop 6 | 1 5 . Fire 104 | 6 89 9 Melee . | . . . Ram . | . . . Kick . | . . . Crush . | . . . Escape Stasis . | . . . Rewire . | . . . Trap . | . . . Miscellaneous . | . . . Route ------- -11/Scrapyard -10/Materials (discovered 3 exits: [*Mat x2] / [*Min]) -10/Mines (discovered 1 exit: [*Mat]) History --------- Turn | Location | Event 4 | -11/Scrapyard | Discovered new exit (range 3) 36 | -11/Scrapyard | Entered Materials 261 | -10/Materials | Discovered new exit (range 16) 308 | -10/Materials | Build established: Mutant 334 | -10/Materials | Discovered new exit (range 9) 345 | -10/Materials | Central database locked down 466 | -10/Materials | Core integrity fell below 50% 692 | -10/Materials | Repaired Lgt. Assault Rifle 731 | -10/Materials | Repaired Lgt. Nuclear Core 759 | -10/Materials | Repaired Lgt. Treads 786 | -10/Materials | Repaired Lgt. Assault Rifle 897 | -10/Materials | Discovered new exit (range 8) 1057 | -10/Materials | Entered Mines 1066 | -10/Mines | Met a Derelict bent on vengeance 1091 | -10/Mines | Learned location of 1 exit from Materials 1134 | -10/Mines | Discovered new exit (range 10) 1224 | -10/Mines | Assembled infested the area 1281 | -10/Mines | Core integrity fell below 20% 1286 | -10/Mines | Destroyed by D-53 Grenadier with Mini Grenade Launcher Last Messages --------------- >>Alert(Purge) No threats on record. LOCATION=UNKNOWN GOAL=ESCAPE 01091_ Acquired derelict log, extracted data. Data stored: Materials exits (x1). 01134_ EXIT=FOUND 01139_ K-01 Serf collects debris. 01224_ ALERT: Infestation in the mines, dispatching Demolisher response squad. 01239_ T-07 Excavator destroyed. 01241_ Acquired 6 matter. 01271_ C-45 Heavy ARC bursts open, deploying its payload. 01271_ D-53 Grenadier unfolds itself. 01281_ The unstable cave ceiling collapses. 01283_ U-05 Engineer builds a Wall. 01284_ The unstable cave ceiling collapses. 01284_ Lgt. Assault Rifle destroyed. 01285_ The unstable cave ceiling collapses. Map ----- +----------------------------------------------------+ | ?# """" """" #?# #??????????????????????????? | | ?# """" """" #?# ###????????????????????????? | | ?# """" """" #?# ##???????????????????????? | | ?# #?# #???????????????????????? | | ?###### ##########?## #???????????????????????? | | ??????# #??????????## ##???????????????????????? | | ??????# #??????????# ########?????????????????? | | ??????# #??????????# #?????????????????? | | ??????# #??????????# ###### #?????????????????? | | ??????# #??????????## ##????# #####?????????????? | | ??????# #?#####?????####?????# #?????????????? | | ??????# ### ##?????????????#### #?????????????? | | ??????# #???????????###??# #?????????????? | | ??????### #??????????# ##?# #?????????????? | | ????????# ##???????### #?# ##????????????? | | ????????## ##???????## #?# ####?????????? | | ?????????## ##????????# #??# ##????????? | | ??????????# #?????##### #???# #????????? | | ??????????# #?????# #????## #????????? | | ??????????# #?????# ##### ##?????##### ##????????? | | ???????#### ####### #?### ###????????# #?????????? | | ???????# ### % ##???????# #?????????? | | ???????# ### ######### d ##??????# #?????????? | | ??????## #?# #??????# #??????# #?????????? | | ?????## ### ##?????# ######## #?????????? | | ?????# #?????# @ #?????????? | | ????# #????# # #########?????????? | | ???# ## #????# #??????????????????? | | ???## ###### ##?##### #??????????????????? | | ????##?????####??# u #??????????????????? | | ?????????????????# ##### # ##??????????????????? | | ??????????????#### ###########???????????????????? | | ??????????????# #?????????????????????????? | | ??????????????# """ #?????????????????????????? | | ????????####### """ #?????????????????????????? | | ????????# """ #?????????????????????????? | | ????????# ##### #?????????????????????????? | | ????????# #???# #?????????????????????????? | | ????????#=#???##########?????????????????????????? | | ??????###%#??????????????????????????????????????? | | ??????# !#??????????????????????????????????????? | | ??????# ###??????????????????????????????????????? | | ??????# #????????????????????????????????????????? | | ??????# #????????????????????????????????????????? | | ??????# ????????????????????????????????????????? | | ??????# #????????????????????????????????????????? | | ??????# #????????????????????????????????????????? | | ??????# #????????????????????????????????????????? | | ??????# #????????????????????????????????????????? | | ?????? ????????????????????????????????????????? | +----------------------------------------------------+ Best States ------------- Heat Dissipation 25 Energy Generation 14 Energy Capacity 250 Matter Stores 300 Matter Capacity 300 Sight Range 16 Terrain Scan Density 10 Evasion (%) 55 Targeting Accuracy 5 Recoil Reduction 1 Item Schematics ----------------- None Robot Schematics ------------------ None Fabricated ------------ Nothing Repaired ---------- Lgt. Assault Rifle | 38% | -10/Materials Lgt. Nuclear Core | 44% | -10/Materials Lgt. Treads | 61% | -10/Materials Lgt. Assault Rifle | 70% | -10/Materials Studied --------- None Alien Tech Used ----------------- None Achievements -------------- None Challenges ------------ None Game ------ Seed AntigravGammaLoader Manual? 0 Play Time 00:09:16 Cumulative 157.2 hours Start 2026.04.16 @ 20:12:15 End 2026.04.16 @ 20:20:27 Sessions 1 Manual Loads 0 Difficulty Rogue Special Mode None Game No. 104 Rogue 104 Adventurer 0 Explorer 0 Win Type - Total 5 Types 3/0/1/1/0/0/0/0/0/0 Lore% 62 Gallery% 53 Achievement% 48 Wizard Run 0 Options --------- Layout 2 ASCII 0 Keyboard 1 Movement Arrows Keybinds 0 Fullscreen 2 Font 24/Terminus Map View 50x44 Zoom Use 0% Tactical HUD 1 Map Filters NONE Filters NONE Steam 1 RUN: 92e0d532-2048-4762-8ce3-3367da3cdc1e